[Event "RUS-ch Boys U21 2021"]
[Site "Loo"]
[Date "2021.04.26"]
[Round "6.2"]
[White "Lobanov, Sergei"]
[Black "Murzin, Volodar"]
[Result "0-1"]
[ECO "B12"]
[WhiteElo "2520"]
[BlackElo "2478"]
[Annotator "ChessBase"]
[PlyCount "69"]
[EventDate "2021.04.21"]
[EventType "swiss"]
[EventCountry "RUS"]
[SourceTitle "playchess.com"]
[Source "ChessBase"]
[SourceQuality "1"]
[TimeControl "40/5400+30:1800+30"]

1. e4 {[%emt 0:00:00]} c6 {[%emt 0:00:00]} 2. d4 {[%emt 0:00:00]} d5 {[%emt 0:00:00]} 3. e5 {[%emt 0:00:00]} Bf5 {[%emt 0:00:00]} 4. Nf3 {[%emt 0:00:00]} e6 {[%emt 0:00:00]} 5. Be2 {[%emt 0:00:00]} Ne7 {[%emt 0:00:02]} 6. O-O {[%emt 0:00:48]} h6 {[%emt 0:00:16]} 7. Nbd2 {[%emt 0:03:26]} Nd7 {[%emt 0:00:21]} 8. Nb3 {[%emt 0:01:27]} Bh7 {[%emt 0:00:22]} 9. a4 {[%emt 0:00:14]} Ng6 {[%emt 0:00:39]} 10. g3 {[%emt 0:02:49]} Be7 {[%emt 0:01:11]} 11. h4 {[%emt 0:00:05]} O-O {[%emt 0:04:16]} 12. h5 {[%emt 0:01:16]} Nh8 {[%emt 0:00:05]} 13. a5 {[%emt 0:00:24]} f6 {[%emt 0:01:34]} 14. c4 {[%emt 0:14:34]} a6 {[%emt 0:13:11]} 15. cxd5 {[%emt 0:25:57]} cxd5 {[%emt 0:00:09]} 16. Be3 {[%emt 0:00:12]} Nf7 {[%emt 0:03:17]} 17. exf6 {[%emt 0:00:50]} Bxf6 {[%emt 0:10:12]} 18. Rc1 {[%emt 0:12:47]} Nd6 {[%emt 0:06:06]} 19. Bf4 {[%emt 0:02:24]} Nc4 {[%emt 0:09:30]} 20. Bxc4 {[%emt 0:02:46]} dxc4 {[%emt 0:00:14]} 21. Rxc4 {[%emt 0:00:03]} Be4 {[%emt 0:01:07]} 22. Rc3 {[%emt 0:08:53]} Bd5 {[%emt 0:06:09]} 23. Ne5 {[%emt 0:05:44]} Bxe5 {[%emt 0:03:17]} 24. Bxe5 {[%emt 0:00:06]} Nxe5 {[%emt 0:04:20]} 25. dxe5 {[%emt 0:00:02]} Qg5 {[%emt 0:00:44]} 26. f4 {[%emt 0:04:11]} Qe7 {[%emt 0:08:24]} 27. Nc5 {[%emt 0:01:37]} Rf5 {[%emt 0:03:48]} 28. g4 {[%emt 0:03:00]} Rf7 {[%emt 0:02:14]} 29. Kh2 {[%emt 0:00:23]} Rc8 {[%emt 0:02:55]} 30. b4 {[%emt 0:03:21]} b6 {[%emt 0:01:00]} 31. axb6 a5 32. Rd3 {[%emt 0:02:48]} axb4 {[%emt 0:02:20]} 33. b7 {[%emt 0:01:28]} Rb8 {[%emt 0:02:28]} 34. Rxd5 {[%emt 0:02:51]} exd5 {[%emt 0:00:02]} 35. Qxd5 {[%emt 0:00:35]} 0-1

[Event "RUS-ch Boys U21 2021"]
[Site "Loo"]
[Date "2021.04.26"]
[Round "6.3"]
[White "Golikov, Daniil"]
[Black "Stukan, Martin"]
[Result "1-0"]
[ECO "E73"]
[WhiteElo "2250"]
[BlackElo "2390"]
[Annotator "NA"]
[PlyCount "43"]
[EventDate "2021.04.21"]
[EventType "swiss"]
[EventCountry "RUS"]
[SourceTitle "playchess.com"]
[Source "ChessBase"]
[SourceQuality "1"]
[TimeControl "40/5400+30:1800+30"]

1. d4 {[%emt 0:01:45]} Nf6 {[%emt 0:00:00]} 2. c4 {[%emt 0:00:02]} g6 {[%emt 0:00:00]} 3. Nc3 {[%emt 0:00:09]} Bg7 {[%emt 0:00:00]} 4. e4 {[%emt 0:00:54]} d6 {[%emt 0:00:00]} 5. Be2 {[%emt 0:00:21]} O-O {[%emt 0:00:00]} 6. Bg5 {[%emt 0:00:04]} Na6 {[%emt 0:00:00]} 7. Qd2 {[%emt 0:00:06]} c6 {[%emt 0:00:00]} 8. Rd1 {[%emt 0:00:05]} Nc7 {[%emt 0:18:59]} 9. Bf3 {[%emt 0:00:07]} Rb8 {[%emt 0:14:11]} 10. Nge2 {[%emt 0:05:55]} Be6 {[%emt 0:14:50]} 11. d5 {[%emt 0:05:53]} Bd7 {[%emt 0:04:53]} 12. c5 {[%emt 0:25:50]} dxc5 {[%emt 0:31:00]} 13. d6 {[%emt 0:00:05]} exd6 {[%emt 0:06:23]} 14. Qxd6 {[%emt 0:00:07]} Nce8 {[%emt 0:04:48]} 15. Qd2 {[%emt 0:04:24]} h6 {[%emt 0:01:09]} 16. Bf4 {[%emt 0:02:00]} Rc8 {[%emt 0:00:59]} 17. e5 {[%emt 0:00:06]} Nd5 {[%emt 0:00:22]} 18. Bxd5 {[%emt 0:00:01]} cxd5 {[%emt 0:00:04]} 19. Qxd5 {[%emt 0:00:04]} Rc7 {[%emt 0:01:00]} 20. e6 {[%emt 0:00:38]} Nf6 {[%emt 0:00:04]} 21. Qe5 {[%emt 0:02:07]} Ne8 {[%emt 0:00:04]} 22. e7 {[%emt 0:00:04]} 1-0

[Event "RUS-ch Boys U21 2021"]
[Site "Loo"]
[Date "2021.04.26"]
[Round "6.4"]
[White "Vetokhin, Savva"]
[Black "Obgolts, Erik"]
[Result "1/2-1/2"]
[ECO "B06"]
[WhiteElo "2261"]
[BlackElo "2414"]
[Annotator "NA"]
[PlyCount "204"]
[EventDate "2021.04.21"]
[EventType "swiss"]
[EventCountry "RUS"]
[SourceTitle "playchess.com"]
[Source "ChessBase"]
[SourceQuality "1"]
[TimeControl "40/5400+30:1800+30"]

1. e4 {[%emt 0:01:53]} g6 {[%emt 0:00:00]} 2. d4 {[%emt 0:00:10]} Bg7 {[%emt 0:00:00]} 3. Nf3 {[%emt 0:00:31]} d6 {[%emt 0:00:06]} 4. Bc4 {[%emt 0:00:22]} c6 {[%emt 0:00:34]} 5. O-O {[%emt 0:02:25]} d5 {[%emt 0:09:28]} 6. Bb3 {[%emt 0:00:34]} Bg4 {[%emt 0:01:13]} 7. h3 {[%emt 0:09:10]} Bxf3 {[%emt 0:00:27]} 8. Qxf3 {[%emt 0:00:10]} Nf6 {[%emt 0:05:36]} 9. exd5 {[%emt 0:12:26]} cxd5 {[%emt 0:01:26]} 10. Bg5 {[%emt 0:03:45]} Ne4 {[%emt 0:04:22]} 11. Be3 {[%emt 0:00:08]} Nc6 {[%emt 0:09:50]} 12. Rd1 {[%emt 0:08:41]} O-O {[%emt 0:05:18]} 13. Na3 {[%emt 0:08:18]} Na5 {[%emt 0:03:25]} 14. Ba4 {[%emt 0:00:46]} Qb6 {[%emt 0:05:36]} 15. Rab1 {[%emt 0:03:03]} Rac8 {[%emt 0:04:22]} 16. c3 {[%emt 0:00:34]} e6 {[%emt 0:00:32]} 17. Bf4 {[%emt 0:00:43]} Nd6 {[%emt 0:02:48]} 18. Bxd6 {[%emt 0:00:33]} Qxd6 {[%emt 0:00:04]} 19. Bc2 {[%emt 0:00:19]} a6 {[%emt 0:00:35]} 20. Bd3 {[%emt 0:00:31]} b5 {[%emt 0:01:17]} 21. Nc2 {[%emt 0:00:07]} Nc4 {[%emt 0:02:07]} 22. Ne3 {[%emt 0:02:17]} Nb6 {[%emt 0:06:32]} 23. a3 {[%emt 0:01:24]} Rc7 {[%emt 0:01:16]} 24. h4 {[%emt 0:00:17]} h5 {[%emt 0:01:23]} 25. g3 {[%emt 0:02:58]} Nc4 {[%emt 0:02:50]} 26. Nf1 {[%emt 0:06:52]} a5 {[%emt 0:01:46]} 27. Bxc4 {[%emt 0:01:27]} Rxc4 {[%emt 0:07:52]} 28. Nd2 {[%emt 0:00:37]} Rc7 {[%emt 0:00:20]} 29. Nb3 {[%emt 0:00:05]} b4 {[%emt 0:02:15]} 30. cxb4 {[%emt 0:03:05]} axb4 {[%emt 0:00:18]} 31. a4 {[%emt 0:00:06]} Rc4 {[%emt 0:02:59]} 32. a5 {[%emt 0:02:22]} Qa6 {[%emt 0:04:05]} 33. Qe2 {[%emt 0:01:02]} Qa7 {[%emt 0:00:17]} 34. Qd3 {[%emt 0:04:25]} Rfc8 {[%emt 0:00:27]} 35. Ra1 {[%emt 0:00:19]} R8c6 {[%emt 0:02:04]} 36. Kg2 {[%emt 0:02:10]} Bf8 {[%emt 0:03:01]} 37. Ra2 {[%emt 0:01:42]} Bd6 {[%emt 0:00:31]} 38. Rda1 {[%emt 0:01:01]} Ra6 {[%emt 0:01:40]} 39. Ra4 {[%emt 0:01:47]} Qb7 {[%emt 0:00:53]} 40. Nd2 {[%emt 0:00:00]} Rc8 {[%emt 0:00:00]} 41. Nb3 {[%emt 0:00:45]} Rcc6 {[%emt 0:09:43]} 42. Kg1 {[%emt 0:01:06]} Qc8 {[%emt 0:07:37]} 43. Kg2 {[%emt 0:03:05]} Rc4 {[%emt 0:00:58]} 44. Kg1 {[%emt 0:01:08]} Qc6 {[%emt 0:00:22]} 45. R4a2 {[%emt 0:00:20]} Kg7 {[%emt 0:01:46]} 46. Re1 {[%emt 0:02:17]} Ra8 {[%emt 0:02:25]} 47. Rea1 {[%emt 0:00:59]} Ra6 {[%emt 0:03:29]} 48. Re1 {[%emt 0:00:26]} Be7 {[%emt 0:01:13]} 49. Rea1 {[%emt 0:01:52]} Bf6 {[%emt 0:01:31]} 50. Nc5 {[%emt 0:03:58]} Ra8 {[%emt 0:00:21]} 51. Nb3 {[%emt 0:00:05]} Qa6 {[%emt 0:00:40]} 52. Kg2 {[%emt 0:00:43]} Qa7 {[%emt 0:00:29]} 53. Rd1 {[%emt 0:00:30]} Qa6 {[%emt 0:02:34]} 54. Rda1 {[%emt 0:01:05]} Ra7 {[%emt 0:00:44]} 55. Rd1 {[%emt 0:01:07]} Qc6 {[%emt 0:00:51]} 56. Re1 {[%emt 0:01:12]} Qd6 {[%emt 0:02:08]} 57. Rd1 {[%emt 0:00:31]} Ra8 {[%emt 0:01:57]} 58. Kg1 {[%emt 0:00:23]} Qa6 {[%emt 0:03:04]} 59. Kg2 {[%emt 0:00:18]} Be7 {[%emt 0:01:15]} 60. Rda1 {[%emt 0:01:03]} Bd6 {[%emt 0:00:57]} 61. Nd2 {[%emt 0:02:19]} Rc6 {[%emt 0:00:27]} 62. Qxa6 {[%emt 0:00:03]} Raxa6 {[%emt 0:00:23]} 63. Nb3 {[%emt 0:00:07]} Kf6 {[%emt 0:01:21]} 64. Kf3 {[%emt 0:00:26]} Ke7 {[%emt 0:00:40]} 65. Ke3 {[%emt 0:00:51]} Rc2 {[%emt 0:00:26]} 66. Rc1 {[%emt 0:00:38]} Rxc1 {[%emt 0:00:17]} 67. Nxc1 {[%emt 0:00:01]} Kd7 {[%emt 0:00:06]} 68. Nb3 {[%emt 0:02:27]} Kc6 {[%emt 0:00:14]} 69. Ra1 {[%emt 0:00:45]} Kb5 {[%emt 0:00:03]} 70. Rc1 {[%emt 0:00:39]} Rc6 {[%emt 0:04:44]} 71. Ra1 {[%emt 0:00:15]} Bb8 {[%emt 0:00:40]} 72. Kd3 {[%emt 0:00:14]} Ba7 {[%emt 0:00:17]} 73. f4 {[%emt 0:00:48]} Bb8 {[%emt 0:00:12]} 74. Nc5 {[%emt 0:00:27]} Ba7 {[%emt 0:00:19]} 75. Nb3 {[%emt 0:00:14]} Rc8 {[%emt 0:00:19]} 76. Nd2 {[%emt 0:00:31]} Rc7 {[%emt 0:00:24]} 77. Nb3 {[%emt 0:00:12]} Ka6 {[%emt 0:00:36]} 78. Ra4 {[%emt 0:00:23]} Rc4 {[%emt 0:00:47]} 79. Ra1 {[%emt 0:00:17]} Rc6 {[%emt 0:00:43]} 80. Rg1 {[%emt 0:00:23]} Kb5 {[%emt 0:00:23]} 81. Ra1 {[%emt 0:00:07]} Rc8 {[%emt 0:00:23]} 82. Nd2 {[%emt 0:00:17]} Bb8 {[%emt 0:00:15]} 83. Nb3 {[%emt 0:00:30]} Bd6 {[%emt 0:00:49]} 84. Kd2 {[%emt 0:00:57]} Ra8 {[%emt 0:00:24]} 85. Rc1 {[%emt 0:00:27]} Ka4 {[%emt 0:00:43]} 86. Nc5+ {[%emt 0:00:21]} Kb5 {[%emt 0:00:37]} 87. Nb3 {[%emt 0:00:02]} Ra7 {[%emt 0:01:04]} 88. Kd3 {[%emt 0:00:14]} Ka4 {[%emt 0:00:20]} 89. Nc5+ {[%emt 0:00:02]} Kb5 {[%emt 0:00:39]} 90. Nb3 {[%emt 0:00:02]} Rc7 {[%emt 0:00:34]} 91. Ra1 {[%emt 0:00:01]} Rc6 {[%emt 0:00:09]} 92. Ke3 {[%emt 0:03:44]} Bb8 {[%emt 0:01:44]} 93. Kd3 {[%emt 0:00:10]} Ba7 {[%emt 0:00:03]} 94. Nd2 {[%emt 0:00:21]} Rc7 {[%emt 0:01:18]} 95. Nb3 {[%emt 0:00:09]} Rc8 {[%emt 0:00:08]} 96. Nd2 {[%emt 0:00:10]} Re8 {[%emt 0:00:31]} 97. Nb3 {[%emt 0:00:50]} Rc8 {[%emt 0:00:59]} 98. Nd2 {[%emt 0:00:07]} Rc6 {[%emt 0:00:11]} 99. Nb3 Rc8 100. Rc1 Ka4 101. Nc5+ Bxc5 102. Rxc5 Kb3 1/2-1/2

[Event "RUS-ch Boys U21 2021"]
[Site "Loo"]
[Date "2021.04.26"]
[Round "6.5"]
[White "Pavlov, Danila"]
[Black "Makoveev, Ilya"]
[Result "1-0"]
[ECO "B90"]
[WhiteElo "2360"]
[BlackElo "2315"]
[Annotator "NA"]
[PlyCount "78"]
[EventDate "2021.04.21"]
[EventType "swiss"]
[EventCountry "RUS"]
[SourceTitle "playchess.com"]
[Source "ChessBase"]
[SourceQuality "1"]
[TimeControl "40/5400+30:1800+30"]

1. e4 {[%emt 0:00:00]} c5 {[%emt 0:00:00]} 2. Nf3 {[%emt 0:00:00]} d6 {[%emt 0:00:00]} 3. d4 {[%emt 0:00:00]} cxd4 {[%emt 0:00:10]} 4. Nxd4 {[%emt 0:00:00]} Nf6 {[%emt 0:00:09]} 5. Nc3 {[%emt 0:00:00]} a6 {[%emt 0:00:51]} 6. Be3 {[%emt 0:00:00]} e5 {[%emt 0:00:14]} 7. Nb3 {[%emt 0:00:00]} Be6 {[%emt 0:00:24]} 8. h3 {[%emt 0:00:24]} Be7 {[%emt 0:08:34]} 9. f4 {[%emt 0:00:19]} b5 {[%emt 0:05:39]} 10. Qf3 {[%emt 0:18:27]} O-O {[%emt 0:13:36]} 11. O-O-O {[%emt 0:03:58]} Nc6 {[%emt 0:13:18]} 12. g4 {[%emt 0:03:01]} Rc8 {[%emt 0:04:26]} 13. Kb1 {[%emt 0:04:28]} Nb4 {[%emt 0:23:50]} 14. fxe5 {[%emt 0:28:15]} Nd7 {[%emt 0:00:31]} 15. exd6 {[%emt 0:04:22]} Bf6 {[%emt 0:00:17]} 16. Bd4 {[%emt 0:02:22]} Nxc2 {[%emt 0:19:49]} 17. Bxf6 {[%emt 0:04:10]} Nxf6 {[%emt 0:01:26]} 18. e5 {[%emt 0:19:50]} Nd7 {[%emt 0:00:16]} 19. Nd5 {[%emt 0:01:40]} Bxd5 {[%emt 0:01:24]} 20. Rxd5 {[%emt 0:01:11]} Nb4 {[%emt 0:00:17]} 21. Rd1 {[%emt 0:03:23]} Nxe5 {[%emt 0:00:20]} 22. Qf4 {[%emt 0:00:16]} Nc4 {[%emt 0:02:19]} 23. a3 {[%emt 0:01:23]} Nc2 {[%emt 0:00:52]} 24. Bxc4 {[%emt 0:03:09]} Rxc4 {[%emt 0:00:38]} 25. Qf2 {[%emt 0:00:46]} Qg5 {[%emt 0:01:53]} 26. Rd3 {[%emt 0:00:20]} Qg6 {[%emt 0:01:15]} 27. Qf5 {[%emt 0:00:42]} Qh6 {[%emt 0:00:30]} 28. d7 {[%emt 0:00:35]} Rd8 {[%emt 0:00:30]} 29. Rf1 {[%emt 0:00:51]} f6 {[%emt 0:00:31]} 30. Rc1 {[%emt 0:00:26]} Nd4 {[%emt 0:00:30]} 31. Rxd4 {[%emt 0:00:06]} Qxc1+ {[%emt 0:00:09]} 32. Nxc1 {[%emt 0:00:19]} Rxd4 {[%emt 0:00:01]} 33. Qe6+ {[%emt 0:00:31]} Kf8 {[%emt 0:00:00]} 34. Qxa6 {[%emt 0:00:07]} b4 {[%emt 0:01:50]} 35. axb4 {[%emt 0:00:11]} R8xd7 {[%emt 0:00:04]} 36. Nb3 {[%emt 0:00:42]} Rd1+ {[%emt 0:00:41]} 37. Ka2 {[%emt 0:00:05]} R1d6 {[%emt 0:00:29]} 38. Qa5 {[%emt 0:00:16]} Rd5 {[%emt 0:00:46]} 39. Nc5 {[%emt 0:00:06]} Rxc5 1-0

[Event "RUS-ch Boys U21 2021"]
[Site "Loo"]
[Date "2021.04.26"]
[Round "6.6"]
[White "Akhtariev, Andrey"]
[Black "Nesterov, Arseniy"]
[Result "0-1"]
[ECO "B13"]
[WhiteElo "2190"]
[BlackElo "2482"]
[Annotator "ChessBase"]
[PlyCount "138"]
[EventDate "2021.04.21"]
[EventType "swiss"]
[EventCountry "RUS"]
[SourceTitle "playchess.com"]
[Source "ChessBase"]
[SourceQuality "1"]
[TimeControl "40/5400+30:1800+30"]

1. e4 {[%emt 0:00:00]} c6 {[%emt 0:00:00]} 2. d4 {[%emt 0:05:38]} d5 {[%emt 0:00:00]} 3. exd5 {[%emt 0:00:03]} cxd5 {[%emt 0:00:00]} 4. Bd3 {[%emt 0:00:37]} Nc6 {[%emt 0:00:00]} 5. c3 {[%emt 0:00:32]} Qc7 {[%emt 0:00:11]} 6. h3 {[%emt 0:05:25]} e6 {[%emt 0:00:23]} 7. Nf3 {[%emt 0:00:15]} Bd6 {[%emt 0:00:11]} 8. O-O {[%emt 0:01:18]} Nge7 {[%emt 0:00:22]} 9. Re1 {[%emt 0:09:09]} Bd7 {[%emt 0:04:47]} 10. Nbd2 {[%emt 0:01:16]} O-O {[%emt 0:04:08]} 11. Qe2 {[%emt 0:10:09]} f6 {[%emt 0:08:54]} 12. c4 {[%emt 0:03:19]} dxc4 {[%emt 0:07:22]} 13. Bxc4 {[%emt 0:04:13]} Nd5 {[%emt 0:00:10]} 14. Ne4 {[%emt 0:01:15]} Rac8 {[%emt 0:09:32]} 15. Nxd6 {[%emt 0:06:14]} Qxd6 {[%emt 0:00:03]} 16. Bd2 {[%emt 0:00:17]} Nce7 {[%emt 0:02:25]} 17. Rac1 {[%emt 0:01:42]} Rc6 {[%emt 0:04:09]} 18. Bb3 {[%emt 0:09:19]} Rfc8 {[%emt 0:01:13]} 19. Qe4 {[%emt 0:02:33]} Rxc1 {[%emt 0:01:59]} 20. Rxc1 {[%emt 0:00:19]} Rxc1+ {[%emt 0:02:20]} 21. Bxc1 {[%emt 0:00:22]} Bc6 {[%emt 0:00:04]} 22. Bd2 {[%emt 0:03:05]} Ng6 {[%emt 0:01:41]} 23. Qg4 {[%emt 0:07:13]} Ngf4 {[%emt 0:07:47]} 24. Ne1 {[%emt 0:03:34]} g5 {[%emt 0:08:56]} 25. Qf3 {[%emt 0:02:11]} Kg7 {[%emt 0:02:37]} 26. Nd3 {[%emt 0:02:17]} Ng6 {[%emt 0:02:57]} 27. Qg4 {[%emt 0:01:14]} b6 {[%emt 0:00:59]} 28. Qg3 {[%emt 0:05:36]} Qd7 {[%emt 0:03:12]} 29. Qg4 {[%emt 0:02:42]} a5 {[%emt 0:01:17]} 30. Bc4 {[%emt 0:01:00]} Bb5 {[%emt 0:04:14]} 31. b3 {[%emt 0:01:11]} Qc6 {[%emt 0:03:19]} 32. Bxb5 {[%emt 0:01:39]} Qxb5 {[%emt 0:00:01]} 33. Qe2 {[%emt 0:00:17]} Qc6 {[%emt 0:00:14]} 34. Ne1 {[%emt 0:00:41]} Nh4 {[%emt 0:01:04]} 35. Qe4 {[%emt 0:01:07]} Qd7 {[%emt 0:01:45]} 36. g3 {[%emt 0:01:00]} Nf5 {[%emt 0:00:20]} 37. h4 {[%emt 0:00:50]} h6 {[%emt 0:03:30]} 38. h5 {[%emt 0:00:56]} Nde7 {[%emt 0:01:37]} 39. Nc2 {[%emt 0:01:51]} Nd6 {[%emt 0:03:39]} 40. Qe2 {[%emt 0:00:00]} Nef5 {[%emt 0:00:00]} 41. a4 {[%emt 0:09:46]} Qc6 {[%emt 0:02:51]} 42. Qd3 {[%emt 0:00:17]} Ne7 {[%emt 0:04:29]} 43. Bc1 {[%emt 0:02:02]} Ndf5 {[%emt 0:02:04]} 44. Bd2 {[%emt 0:00:59]} Qd5 {[%emt 0:02:39]} 45. Bc1 {[%emt 0:01:14]} Kf7 {[%emt 0:07:14]} 46. Ba3 {[%emt 0:01:30]} Nc6 {[%emt 0:01:03]} 47. g4 {[%emt 0:03:28]} Ncxd4 {[%emt 0:16:17]} 48. Ne1 {[%emt 0:01:48]} Ng7 {[%emt 0:03:54]} 49. Bb2 {[%emt 0:03:27]} e5 {[%emt 0:00:11]} 50. Qg6+ {[%emt 0:00:11]} Kg8 {[%emt 0:00:18]} 51. Bxd4 {[%emt 0:02:11]} Qxd4 {[%emt 0:00:15]} 52. Qxf6 {[%emt 0:00:10]} Qxg4+ {[%emt 0:00:05]} 53. Kf1 {[%emt 0:00:07]} Qh3+ {[%emt 0:04:00]} 54. Kg1 {[%emt 0:00:17]} Qe6 {[%emt 0:02:25]} 55. Qd8+ {[%emt 0:05:15]} Kh7 {[%emt 0:00:08]} 56. Qd3+ {[%emt 0:00:07]} e4 {[%emt 0:00:07]} 57. Qe2 {[%emt 0:01:06]} g4 {[%emt 0:00:08]} 58. Ng2 {[%emt 0:00:39]} Nxh5 {[%emt 0:00:13]} 59. Qb5 {[%emt 0:00:10]} Ng7 {[%emt 0:01:00]} 60. Ne3 {[%emt 0:00:22]} h5 {[%emt 0:01:14]} 61. b4 {[%emt 0:02:44]} axb4 {[%emt 0:00:24]} 62. Qxb4 {[%emt 0:00:04]} Qg6 {[%emt 0:02:02]} 63. Kg2 {[%emt 0:05:21]} Ne6 {[%emt 0:00:28]} 64. Nd5 {[%emt 0:01:25]} Qf5 {[%emt 0:00:31]} 65. Qe7+ {[%emt 0:00:15]} Kh6 {[%emt 0:00:26]} 66. Nxb6 {[%emt 0:01:49]} e3 {[%emt 0:00:26]} 67. fxe3 {[%emt 0:02:03]} Qf3+ {[%emt 0:00:02]} 68. Kg1 {[%emt 0:00:04]} Qxe3+ {[%emt 0:00:08]} 69. Kh1 {[%emt 0:00:07]} Qe1+ {[%emt 0:00:14]} 0-1

[Event "RUS-ch Boys U21 2021"]
[Site "Loo"]
[Date "2021.04.26"]
[Round "6.7"]
[White "Makovich, Andrey"]
[Black "Makarian, Rudik"]
[Result "1/2-1/2"]
[ECO "B06"]
[WhiteElo "2171"]
[BlackElo "2468"]
[Annotator "ChessBase"]
[PlyCount "119"]
[EventDate "2021.04.21"]
[EventType "swiss"]
[EventCountry "RUS"]
[SourceTitle "playchess.com"]
[Source "ChessBase"]
[SourceQuality "1"]
[TimeControl "40/5400+30:1800+30"]

1. d4 {[%emt 0:00:00]} g6 {[%emt 0:00:00]} 2. Nf3 {[%emt 0:00:00]} Bg7 {[%emt 0:00:00]} 3. e4 {[%emt 0:00:00]} d6 {[%emt 0:00:09]} 4. c3 {[%emt 0:01:00]} Nd7 {[%emt 0:03:32]} 5. Bc4 {[%emt 0:01:08]} e6 {[%emt 0:00:38]} 6. Qe2 {[%emt 0:03:50]} b6 {[%emt 0:02:38]} 7. Bg5 {[%emt 0:05:44]} Ne7 {[%emt 0:00:35]} 8. h4 {[%emt 0:00:37]} h6 {[%emt 0:01:02]} 9. Bf4 {[%emt 0:00:09]} a6 {[%emt 0:04:19]} 10. Nbd2 {[%emt 0:03:45]} Bb7 {[%emt 0:00:27]} 11. a4 {[%emt 0:02:01]} Nf6 {[%emt 0:01:00]} 12. Bd3 {[%emt 0:16:07]} Qd7 {[%emt 0:10:43]} 13. e5 {[%emt 0:05:29]} Nfd5 {[%emt 0:25:50]} 14. Bh2 {[%emt 0:00:33]} O-O {[%emt 0:01:07]} 15. Ne4 {[%emt 0:05:39]} f5 {[%emt 0:01:00]} 16. exf6 {[%emt 0:00:05]} Nxf6 {[%emt 0:00:10]} 17. O-O {[%emt 0:05:36]} Nh5 {[%emt 0:11:43]} 18. Rae1 {[%emt 0:02:51]} Qxa4 {[%emt 0:05:50]} 19. Ned2 {[%emt 0:07:24]} Qd7 {[%emt 0:04:00]} 20. Qxe6+ {[%emt 0:00:29]} Qxe6 {[%emt 0:00:01]} 21. Rxe6 {[%emt 0:00:02]} Nd5 {[%emt 0:04:51]} 22. Bc4 {[%emt 0:05:06]} Kf7 {[%emt 0:03:21]} 23. Rfe1 {[%emt 0:00:10]} Rae8 {[%emt 0:00:19]} 24. Rxe8 {[%emt 0:00:08]} Rxe8 {[%emt 0:00:02]} 25. Kf1 {[%emt 0:02:20]} Nhf6 {[%emt 0:00:55]} 26. Rxe8 {[%emt 0:01:13]} Kxe8 {[%emt 0:00:12]} 27. Ne1 {[%emt 0:00:20]} b5 {[%emt 0:00:16]} 28. Bd3 {[%emt 0:00:05]} Kf7 {[%emt 0:00:06]} 29. Nc2 {[%emt 0:00:42]} Nb6 {[%emt 0:02:19]} 30. b3 {[%emt 0:02:54]} Nfd5 {[%emt 0:00:51]} 31. c4 {[%emt 0:00:10]} bxc4 {[%emt 0:00:04]} 32. bxc4 {[%emt 0:02:04]} Ne7 {[%emt 0:01:13]} 33. Nb3 {[%emt 0:01:05]} Bf6 {[%emt 0:01:57]} 34. c5 {[%emt 0:01:10]} Na4 {[%emt 0:04:38]} 35. cxd6 {[%emt 0:02:02]} cxd6 {[%emt 0:00:03]} 36. Na5 {[%emt 0:06:19]} Nb2 {[%emt 0:02:02]} 37. Bxg6+ {[%emt 0:02:15]} Kxg6 {[%emt 0:01:02]} 38. Nxb7 {[%emt 0:00:07]} Nf5 {[%emt 0:02:05]} 39. d5 {[%emt 0:02:14]} Nc4 {[%emt 0:00:55]} 40. g4 {[%emt 0:00:00]} Nxh4 {[%emt 0:00:00]} 41. Nxd6 {[%emt 0:03:37]} Nb6 {[%emt 0:01:49]} 42. Ne3 {[%emt 0:00:03]} Nf3 {[%emt 0:08:03]} 43. Bg3 {[%emt 0:00:31]} a5 {[%emt 0:00:10]} 44. Ndc4 {[%emt 0:02:53]} Nxc4 {[%emt 0:01:03]} 45. Nxc4 {[%emt 0:00:02]} a4 {[%emt 0:01:03]} 46. Bd6 {[%emt 0:02:28]} Nd4 {[%emt 0:02:31]} 47. f4 {[%emt 0:01:44]} Nb5 {[%emt 0:00:32]} 48. Bb4 {[%emt 0:00:58]} Kf7 {[%emt 0:01:05]} 49. Kf2 {[%emt 0:03:31]} Nc7 {[%emt 0:05:39]} 50. d6 {[%emt 0:02:13]} Nd5 {[%emt 0:00:11]} 51. Bd2 {[%emt 0:00:24]} Nb6 {[%emt 0:02:44]} 52. Nxb6 {[%emt 0:04:57]} a3 {[%emt 0:00:09]} 53. d7 {[%emt 0:00:02]} a2 {[%emt 0:00:31]} 54. Bc3 {[%emt 0:00:11]} Bxc3 {[%emt 0:00:09]} 55. d8=Q {[%emt 0:01:10]} a1=Q {[%emt 0:00:01]} 56. Qd7+ {[%emt 0:01:16]} Kf8 {[%emt 0:03:36]} 57. Qd6+ {[%emt 0:01:36]} Kf7 {[%emt 0:01:12]} 58. Qd5+ {[%emt 0:00:08]} Kf8 {[%emt 0:00:33]} 59. Nd7+ {[%emt 0:03:07]} Ke7 {[%emt 0:00:15]} 60. Ne5 {[%emt 0:00:23]} 1/2-1/2

[Event "RUS-ch Boys U21 2021"]
[Site "Loo"]
[Date "2021.04.26"]
[Round "6.8"]
[White "Shubin, Kirill"]
[Black "Marchuk, Rostislav"]
[Result "1-0"]
[ECO "B00"]
[WhiteElo "2466"]
[BlackElo "2080"]
[Annotator "ChessBase"]
[PlyCount "43"]
[EventDate "2021.04.21"]
[EventType "swiss"]
[EventCountry "RUS"]
[SourceTitle "playchess.com"]
[Source "ChessBase"]
[SourceQuality "1"]
[TimeControl "40/5400+30:1800+30"]

1. e4 {[%emt 0:00:00]} d6 {[%emt 0:00:00]} 2. d4 {[%emt 0:00:00]} Nf6 {[%emt 0:00:00]} 3. f3 {[%emt 0:00:00]} Nbd7 {[%emt 0:01:36]} 4. Ne2 {[%emt 0:00:14]} e5 {[%emt 0:00:20]} 5. c4 {[%emt 0:00:04]} c6 {[%emt 0:00:25]} 6. Nbc3 {[%emt 0:00:55]} Be7 {[%emt 0:02:17]} 7. Be3 {[%emt 0:00:06]} O-O {[%emt 0:00:38]} 8. d5 {[%emt 0:00:17]} a6 {[%emt 0:06:51]} 9. Ng3 {[%emt 0:04:20]} Ne8 {[%emt 0:09:00]} 10. Qd2 {[%emt 0:04:58]} g6 {[%emt 0:01:21]} 11. Bd3 {[%emt 0:04:22]} Ng7 {[%emt 0:02:21]} 12. O-O {[%emt 0:04:29]} h5 {[%emt 0:06:20]} 13. b4 {[%emt 0:03:57]} h4 {[%emt 0:12:46]} 14. Nge2 {[%emt 0:00:15]} f5 {[%emt 0:00:57]} 15. c5 {[%emt 0:06:10]} f4 {[%emt 0:12:43]} 16. cxd6 {[%emt 0:01:01]} Bxd6 {[%emt 0:04:51]} 17. dxc6 {[%emt 0:00:31]} Bxb4 {[%emt 0:05:35]} 18. cxd7 {[%emt 0:05:03]} fxe3 {[%emt 0:01:05]} 19. dxc8=Q {[%emt 0:00:52]} Rxc8 {[%emt 0:02:23]} 20. Qc2 {[%emt 0:00:09]} Bxc3 {[%emt 0:01:12]} 21. Nxc3 {[%emt 0:00:04]} e2 {[%emt 0:00:10]} 22. Qb3+ {[%emt 0:00:06]} 1-0